[Event "Nové Hrady - Open"]
[Site "Nové Hrady, Czech Republic"]
[Date "2024.08.15"]
[Round "5.7"]
[White "Junek, Petr"]
[Black "Shivairo, Swegenyi Mark"]
[Result "1-0"]
[TimeControl "2x90min+30s"]
[WhiteFideId "23739282"]
[BlackFideId "23745029"]
[WhiteElo "1775"]
[BlackElo "1618"]

1. e4 {[%clk 01:30:58]} {[%emt 00:00:03]} e5 {[%clk 01:30:59]} 2. Nf3 {[%clk
01:31:24]} {[%emt 00:00:04]} Nc6 {[%clk 01:31:27]} {[%emt 00:00:03]} 3. Bb5
{[%clk 01:31:43]} {[%emt 00:00:12]} Bc5 {[%clk 01:28:12]} {[%emt 00:03:44]} 4.
c3 {[%clk 01:31:36]} {[%emt 00:00:36]} d6 {[%clk 01:24:26]} {[%emt 00:04:17]} 5.
O-O {[%clk 01:31:01]} {[%emt 00:01:04]} Bd7 {[%clk 01:19:57]} {[%emt 00:05:02]}
6. d4 {[%clk 01:30:43]} {[%emt 00:00:46]} exd4 {[%clk 01:19:53]} {[%emt
00:00:34]} 7. cxd4 {[%clk 01:28:01]} {[%emt 00:03:12]} Bb6 {[%clk 01:19:47]}
{[%emt 00:00:36]} 8. Qd3 {[%clk 01:23:42]} {[%emt 00:04:49]} Nge7 {[%clk
01:11:45]} {[%emt 00:08:30]} 9. Nc3 {[%clk 01:20:37]} {[%emt 00:03:36]} O-O
{[%clk 01:10:21]} {[%emt 00:01:54]} 10. Bg5 {[%clk 01:17:06]} {[%emt 00:04:01]}
h6 {[%clk 01:09:23]} {[%emt 00:01:28]} 11. Bh4 {[%clk 01:07:40]} {[%emt
00:09:57]} Qe8 {[%clk 01:08:43]} {[%emt 00:01:07]} 12. Rfe1 {[%clk 01:02:11]}
{[%emt 00:06:02]} Nb4 {[%clk 01:05:10]} {[%emt 00:03:57]} 13. Qe2 {[%clk
01:00:04]} {[%emt 00:02:42]} Bxb5 {[%clk 01:03:35]} {[%emt 00:02:06]} 14. Nxb5
{[%clk 01:00:16]} {[%emt 00:00:18]} Rc8 {[%clk 00:54:59]} {[%emt 00:09:01]} 15.
a3 {[%clk 00:55:27]} {[%emt 00:05:24]} Nc2 {[%clk 00:54:35]} {[%emt 00:00:53]}
16. Qxc2 {[%clk 00:55:36]} {[%emt 00:00:21]} Qxb5 {[%clk 00:54:57]} {[%emt
00:00:06]} 17. Bxe7 {[%clk 00:55:48]} {[%emt 00:00:20]} Rfe8 {[%clk 00:53:40]}
{[%emt 00:01:47]} 18. Bh4 {[%clk 00:55:17]} {[%emt 00:01:01]} g5 {[%clk
00:51:38]} {[%emt 00:02:33]} 19. Bg3 {[%clk 00:53:56]} {[%emt 00:01:50]} h5
{[%clk 00:51:55]} {[%emt 00:00:13]} 20. h4 {[%clk 00:52:48]} {[%emt 00:01:38]}
g4 {[%clk 00:51:20]} {[%emt 00:01:05]} 21. Ng5 {[%clk 00:52:47]} {[%emt
00:00:31]} f6 {[%clk 00:51:17]} {[%emt 00:00:33]} 22. e5 {[%clk 00:48:54]}
{[%emt 00:04:23]} fxg5 {[%emt 00:00:50]} 23. Qg6+ {[%clk 00:48:29]} {[%emt
00:00:53]} Kf8 {[%clk 00:50:26]} {[%emt 00:00:58]} 24. e6 {[%clk 00:41:05]}
{[%emt 00:07:59]} Re7 {[%clk 00:41:59]} {[%emt 00:08:57]} 25. Qf6+ {[%clk
00:41:01]} {[%emt 00:00:34]} Kg8 {[%clk 00:41:53]} {[%emt 00:00:36]} 26. Qxe7
{[%clk 00:39:52]} {[%emt 00:01:39]} gxh4 {[%clk 00:37:57]} {[%emt 00:04:26]} 27.
Qf7+ {[%clk 00:33:43]} {[%emt 00:06:39]} Kh8 {[%clk 00:38:10]} {[%emt
00:00:17]} 28. Be5+ {[%clk 00:31:07]} {[%emt 00:03:06]} dxe5 {[%clk 00:37:43]}
{[%emt 00:00:57]} 29. Rxe5 {[%clk 00:31:27]} {[%emt 00:00:10]} Qxe5 {[%clk
00:36:31]} {[%emt 00:01:41]} 30. dxe5 {[%clk 00:31:45]} {[%emt 00:00:13]} g3
{[%clk 00:36:14]} {[%emt 00:00:48]} 31. Qxh5+ {[%clk 00:29:51]} {[%emt
00:02:24]} Kg7 {[%clk 00:36:23]} {[%emt 00:00:15]} 32. Qg5+ {[%clk 00:28:16]}
{[%emt 00:02:11]} Kf8 {[%clk 00:35:54]} {[%emt 00:00:54]} 33. Qf6+ {[%clk
00:28:33]} {[%emt 00:00:17]} Kg8 {[%clk 00:35:55]} {[%emt 00:00:27]} 34. Rf1
{[%clk 00:27:57]} {[%emt 00:01:09]} Rf8 {[%clk 00:31:49]} {[%emt 00:04:36]} 35.
Qg5+ {[%clk 00:28:02]} {[%emt 00:00:24]} Kh8 {[%clk 00:31:45]} {[%emt
00:00:32]} 36. Qxh4+ {[%clk 00:28:22]} {[%emt 00:00:12]} 1-0

[Event "Nové Hrady - Open"]
[Site "Nové Hrady, Czech Republic"]
[Date "2024.08.15"]
[Round "5.8"]
[White "Černý, Zbyšek"]
[Black "Garabik, Marek"]
[Result "1-0"]
[TimeControl "2x90min+30s"]
[WhiteFideId "23739380"]
[BlackFideId "23717742"]
[WhiteElo "1582"]
[BlackElo "1916"]

1. d4 {[%clk 01:30:55]} {[%emt 00:00:05]} e6 {[%clk 01:30:40]} {[%emt
00:00:20]} 2. c4 {[%clk 01:31:19]} {[%emt 00:00:06]} d5 {[%clk 01:31:04]}
{[%emt 00:00:06]} 3. Nc3 {[%clk 01:31:32]} {[%emt 00:00:18]} Nf6 {[%clk
01:31:27]} {[%emt 00:00:07]} 4. Nf3 {[%clk 01:31:28]} {[%emt 00:00:34]} Be7
{[%clk 01:30:16]} {[%emt 00:01:40]} 5. e3 {[%clk 01:30:50]} {[%emt 00:01:08]}
O-O {[%clk 01:30:12]} {[%emt 00:00:34]} 6. Bd3 {[%clk 01:31:13]} {[%emt
00:00:07]} Nbd7 {[%clk 01:30:22]} {[%emt 00:00:20]} 7. O-O {[%clk 01:30:19]}
{[%emt 00:01:24]} dxc4 {[%clk 01:30:30]} {[%emt 00:00:22]} 8. Bxc4 {[%clk
01:30:26]} {[%emt 00:00:22]} c5 {[%clk 01:29:50]} {[%emt 00:01:11]} 9. b3
{[%clk 01:27:57]} {[%emt 00:02:59]} Nb6 {[%clk 01:27:04]} {[%emt 00:03:16]} 10.
Bd3 {[%clk 01:27:28]} {[%emt 00:00:59]} Bd7 {[%clk 01:25:30]} {[%emt 00:02:03]}
11. Bb2 {[%clk 01:26:51]} {[%emt 00:01:07]} Bc6 {[%clk 01:24:06]} {[%emt
00:01:55]} 12. Rc1 {[%clk 01:25:53]} {[%emt 00:01:28]} cxd4 {[%clk 01:21:03]}
{[%emt 00:03:33]} 13. Nxd4 {[%clk 01:25:59]} {[%emt 00:00:23]} Rc8 {[%clk
01:17:58]} {[%emt 00:03:36]} 14. Nxc6 {[%clk 01:25:29]} {[%emt 00:01:01]} Rxc6
{[%clk 01:16:34]} {[%emt 00:01:53]} 15. Qe2 {[%clk 01:25:42]} {[%emt 00:00:17]}
Qb8 {[%clk 01:11:27]} {[%emt 00:05:38]} 16. Rfd1 {[%clk 01:23:13]} {[%emt
00:02:58]} Rd8 {[%clk 01:09:59]} {[%emt 00:01:58]} 17. Bb1 {[%clk 01:14:40]}
{[%emt 00:09:02]} Rxd1+ {[%clk 01:09:08]} {[%emt 00:01:22]} 18. Rxd1 {[%clk
01:14:51]} {[%emt 00:00:17]} Rc8 {[%clk 01:07:43]} {[%emt 00:01:57]} 19. Qf3
{[%clk 01:13:39]} {[%emt 00:01:42]} Bd6 {[%clk 00:56:50]} {[%emt 00:11:23]} 20.
Ne4 {[%clk 01:05:43]} {[%emt 00:08:27]} Be5 {[%clk 00:36:03]} {[%emt 00:21:16]}
21. Nxf6+ {[%clk 01:05:16]} {[%emt 00:00:56]} gxf6 {[%clk 00:34:27]} {[%emt
00:02:07]} 22. Bxe5 {[%clk 01:04:28]} {[%emt 00:01:18]} Qxe5 {[%clk 00:34:25]}
{[%emt 00:00:31]} 23. Qxb7 {[%clk 01:04:31]} {[%emt 00:00:28]} f5 {[%clk
00:28:09]} {[%emt 00:06:47]} 24. Qxa7 {[%clk 01:03:56]} {[%emt 00:01:04]} Nd5
{[%clk 00:27:49]} {[%emt 00:00:50]} 25. Qd4 {[%clk 01:02:05]} {[%emt 00:02:21]}
Qxd4 {[%clk 00:27:54]} {[%emt 00:00:25]} 26. exd4 {[%clk 01:02:26]} {[%emt
00:00:08]} Nc3 {[%clk 00:26:41]} {[%emt 00:01:44]} 27. Re1 {[%clk 01:02:35]}
{[%emt 00:00:20]} Ne2+ {[%clk 00:22:46]} {[%emt 00:04:27]} 28. Kf1 {[%clk
01:02:33]} {[%emt 00:00:31]} Nxd4 {[%clk 00:23:05]} {[%emt 00:00:11]} 29. Rd1
{[%clk 01:02:01]} {[%emt 00:01:01]} e5 {[%clk 00:21:01]} {[%emt 00:02:34]} 30.
Ke1 {[%clk 00:59:58]} {[%emt 00:02:33]} Kf8 {[%clk 00:15:38]} {[%emt 00:05:54]}
31. Kd2 {[%clk 00:59:00]} {[%emt 00:01:27]} Ke7 {[%clk 00:12:53]} {[%emt
00:03:16]} 32. Rc1 {[%clk 00:57:33]} {[%emt 00:01:55]} Rd8 {[%clk 00:09:49]}
{[%emt 00:03:37]} 33. Ke1 {[%clk 00:56:11]} {[%emt 00:01:51]} Kd6 {[%clk
00:09:54]} {[%emt 00:00:25]} 34. Rd1 {[%clk 00:55:51]} {[%emt 00:00:49]} Kc7
{[%clk 00:07:29]} {[%emt 00:02:56]} 35. f3 {[%clk 00:55:05]} {[%emt 00:01:15]}
Rg8 {[%clk 00:05:18]} {[%emt 00:02:41]} 36. Kf2 {[%clk 00:54:35]} {[%emt
00:01:00]} Kb6 {[%clk 00:04:59]} {[%emt 00:00:50]} 37. Rd3 {[%clk 00:52:25]}
{[%emt 00:02:40]} Rc8 {[%clk 00:05:08]} {[%emt 00:00:21]} 38. Re3 {[%clk
00:51:30]} {[%emt 00:01:23]} f6 {[%clk 00:04:49]} {[%emt 00:00:50]} 39. Re1
{[%clk 00:46:25]} {[%emt 00:05:33]} Ka5 {[%clk 00:04:33]} {[%emt 00:00:48]} 40.
Rd1 {[%clk 00:45:13]} {[%emt 00:01:42]} Kb4 {[%clk 00:04:01]} {[%emt 00:01:02]}
41. f4 {[%clk 00:44:53]} {[%emt 00:00:51]} Rc3 {[%clk 00:02:32]} {[%emt
00:01:59]} 42. Bd3 {[%clk 00:41:27]} {[%emt 00:03:55]} Kc5 {[%clk 00:01:44]}
{[%emt 00:01:19]} 43. Bb1 {[%clk 00:35:46]} {[%emt 00:06:10]} e4 {[%clk
00:01:19]} {[%emt 00:00:56]} 44. Ke1 {[%clk 00:31:47]} {[%emt 00:04:27]} h5
{[%clk 00:01:08]} {[%emt 00:00:43]} 45. Kd2 {[%clk 00:31:44]} {[%emt 00:00:32]}
Nb5 {[%clk 00:00:48]} {[%emt 00:00:51]} 46. a4 {[%clk 00:30:10]} {[%emt
00:02:04]} e3+ {[%clk 00:01:11]} {[%emt 00:00:07]} 47. Ke1 {[%clk 00:28:22]}
{[%emt 00:02:18]} Nd4 {[%clk 00:00:57]} {[%emt 00:00:44]} 48. b4+ {[%clk
00:27:20]} {[%emt 00:01:31]} Kc4 {[%clk 00:01:01]} {[%emt 00:00:27]} 49. Ba2+
{[%clk 00:27:27]} {[%emt 00:00:24]} Nb3 {[%clk 00:01:30]} 50. Rb1 {[%clk
00:27:36]} {[%emt 00:00:20]} Kxb4 {[%clk 00:00:31]} {[%emt 00:01:28]} 51. Rxb3+
{[%clk 00:27:52]} {[%emt 00:00:15]} Rxb3 {[%clk 00:00:31]} {[%emt 00:00:28]} 52.
Bxb3 {[%clk 00:28:14]} {[%emt 00:00:10]} Kxb3 {[%clk 00:00:48]} {[%emt
00:00:13]} 53. a5 {[%clk 00:28:34]} {[%emt 00:00:11]} Kc4 {[%clk 00:01:15]}
{[%emt 00:00:02]} 54. a6 {[%clk 00:28:43]} {[%emt 00:00:20]} Kd5 {[%clk
00:01:40]} {[%emt 00:00:05]} 55. a7 {[%clk 00:29:06]} {[%emt 00:00:08]} Ke4
{[%clk 00:02:09]} 56. a8=Q+ {[%clk 00:29:19]} {[%emt 00:00:18]} Kxf4 {[%clk
00:02:32]} {[%emt 00:00:07]} 57. Qf3+ {[%clk 00:29:36]} {[%emt 00:00:12]} Kg5
{[%clk 00:02:59]} {[%emt 00:00:03]} 58. Qxe3+ {[%clk 00:29:56]} {[%emt
00:00:10]} f4 {[%clk 00:03:23]} {[%emt 00:00:06]} 59. Qd2 {[%clk 00:30:07]}
{[%emt 00:00:19]} Kg4 {[%clk 00:03:46]} {[%emt 00:00:08]} 60. Kf2 {[%clk
00:30:07]} {[%emt 00:00:29]} f5 {[%clk 00:03:52]} {[%emt 00:00:24]} 61. h3+
{[%clk 00:29:43]} {[%emt 00:00:54]} Kg5 {[%clk 00:04:00]} {[%emt 00:00:22]} 62.
Qd8+ {[%clk 00:29:48]} {[%emt 00:00:25]} 1-0

[Event "Nové Hrady - Open"]
[Site "Nové Hrady, Czech Republic"]
[Date "2024.08.15"]
[Round "5.9"]
[White "Valiyev, Adil"]
[Black "Dudarec, Elias"]
[Result "0-1"]
[TimeControl "2x90min+30s"]
[WhiteFideId "23752246"]
[BlackFideId "23714930"]
[WhiteElo "1469"]
[BlackElo "1750"]

1. e4 {[%clk 01:30:55]} {[%emt 00:00:02]} e6 {[%clk 01:30:53]} {[%emt
00:00:09]} 2. d4 {[%clk 01:31:13]} {[%emt 00:00:11]} d5 {[%clk 01:31:20]}
{[%emt 00:00:04]} 3. e5 {[%clk 01:31:34]} {[%emt 00:00:08]} c5 {[%clk
01:31:45]} {[%emt 00:00:06]} 4. c3 {[%clk 01:31:45]} {[%emt 00:00:19]} Nc6
{[%clk 01:32:10]} {[%emt 00:00:06]} 5. Nf3 {[%clk 01:31:25]} {[%emt 00:00:48]}
Qb6 {[%clk 01:32:31]} {[%emt 00:00:10]} 6. a4 {[%clk 01:29:51]} {[%emt
00:02:05]} Bd7 {[%clk 01:32:14]} {[%emt 00:00:46]} 7. Na3 {[%clk 01:29:46]}
{[%emt 00:00:35]} a6 {[%clk 01:30:44]} {[%emt 00:02:00]} 8. Nc2 {[%clk
01:28:20]} {[%emt 00:01:56]} c4 {[%clk 01:29:25]} {[%emt 00:01:50]} 9. Be2
{[%clk 01:27:03]} {[%emt 00:01:46]} Nge7 {[%clk 01:28:47]} {[%emt 00:01:09]} 10.
O-O {[%clk 01:26:29]} {[%emt 00:01:02]} Ng6 {[%clk 01:28:52]} {[%emt 00:00:25]}
11. Bd2 {[%clk 01:25:09]} {[%emt 00:01:50]} Na5 {[%clk 01:27:41]} {[%emt
00:01:43]} 12. Nb4 {[%clk 01:22:34]} {[%emt 00:03:04]} Nb3 {[%clk 01:26:30]}
{[%emt 00:01:41]} 13. Ra2 {[%clk 01:20:43]} {[%emt 00:02:22]} Be7 {[%clk
01:22:06]} {[%emt 00:04:54]} 14. Qe1 {[%clk 01:19:33]} {[%emt 00:01:39]} a5
{[%clk 01:12:43]} {[%emt 00:09:54]} 15. Nc2 {[%clk 01:19:18]} {[%emt 00:00:41]}
O-O {[%clk 01:12:28]} {[%emt 00:00:48]} 16. Ne3 {[%clk 01:19:32]} {[%emt
00:00:16]} Nf4 {[%clk 01:09:34]} {[%emt 00:03:25]} 17. Nc2 {[%clk 01:17:01]}
{[%emt 00:02:59]} Ng6 {[%clk 01:01:52]} {[%emt 00:08:13]} 18. Na1 {[%clk
01:16:38]} {[%emt 00:00:52]} Nxd2 {[%clk 00:59:43]} {[%emt 00:02:40]} 19. Qxd2
{[%clk 01:16:33]} {[%emt 00:00:31]} f6 {[%clk 00:59:39]} {[%emt 00:00:39]} 20.
Nc2 {[%clk 01:15:12]} {[%emt 00:01:50]} Qb3 {[%clk 00:59:01]} {[%emt 00:01:09]}
21. Rfa1 {[%clk 01:14:55]} {[%emt 00:00:45]} f5 {[%clk 00:46:40]} {[%emt
00:12:52]} 22. Qc1 {[%clk 01:06:44]} {[%emt 00:08:40]} f4 {[%clk 00:41:12]}
{[%emt 00:05:59]} 23. Nb4 {[%clk 01:06:44]} {[%emt 00:00:31]} axb4 {[%clk
00:37:33]} {[%emt 00:04:09]} 24. Bd1 {[%clk 01:06:14]} {[%emt 00:00:59]} Qxa2
{[%clk 00:36:31]} {[%emt 00:01:33]} 25. Rxa2 {[%clk 01:06:34]} {[%emt
00:00:10]} b3 {[%clk 00:36:50]} {[%emt 00:00:10]} 26. Ra1 {[%clk 01:06:55]}
{[%emt 00:00:09]} Bxa4 {[%clk 00:35:50]} {[%emt 00:01:31]} 27. Nd2 {[%clk
00:59:24]} {[%emt 00:07:59]} b6 {[%clk 00:29:49]} {[%emt 00:06:32]} 28. Bg4
{[%clk 00:58:37]} {[%emt 00:01:15]} Kf7 {[%clk 00:29:04]} {[%emt 00:01:18]} 29.
Bh5 {[%clk 00:57:12]} {[%emt 00:01:54]} Bc6 {[%clk 00:28:57]} {[%emt 00:00:37]}
30. Rxa8 {[%clk 00:56:57]} {[%emt 00:00:45]} Rxa8 {[%clk 00:29:18]} {[%emt
00:00:07]} 31. Bxg6+ {[%clk 00:57:23]} {[%emt 00:00:05]} Kxg6 {[%clk 00:27:55]}
{[%emt 00:01:54]} 32. Nf3 {[%clk 00:56:59]} {[%emt 00:00:50]} Ra2 {[%clk
00:27:06]} {[%emt 00:01:23]} 33. h4 {[%clk 00:54:08]} {[%emt 00:03:21]} Kf7
{[%clk 00:26:15]} {[%emt 00:01:22]} 34. Qxf4+ {[%clk 00:53:25]} {[%emt
00:01:10]} Ke8 {[%clk 00:26:37]} {[%emt 00:00:09]} 35. Qd2 {[%clk 00:50:38]}
{[%emt 00:03:17]} Ba3 {[%clk 00:25:13]} {[%emt 00:01:55]} 36. bxa3 {[%clk
00:49:01]} {[%emt 00:02:07]} b2 {[%clk 00:25:07]} {[%emt 00:00:36]} 37. Qxb2
{[%clk 00:44:33]} {[%emt 00:04:58]} Rxb2 {[%clk 00:25:31]} {[%emt 00:00:07]} 38.
Ng5 {[%clk 00:44:59]} {[%emt 00:00:03]} Ke7 {[%clk 00:25:37]} {[%emt 00:00:24]}
39. Nxh7 {[%clk 00:45:10]} {[%emt 00:00:18]} Rb3 {[%clk 00:26:05]} {[%emt
00:00:04]} 40. Nf6 {[%clk 00:43:28]} {[%emt 00:02:11]} gxf6 {[%clk 00:26:03]}
{[%emt 00:00:31]} 41. g4 {[%clk 00:43:12]} {[%emt 00:00:46]} fxe5 {[%clk
00:26:18]} {[%emt 00:00:16]} 42. g5 {[%clk 00:42:34]} {[%emt 00:01:08]} Rxc3
{[%clk 00:26:38]} {[%emt 00:00:10]} 43. h5 {[%clk 00:41:54]} {[%emt 00:01:10]}
Rxa3 {[%clk 00:27:00]} {[%emt 00:00:08]} 44. g6 {[%clk 00:41:13]} {[%emt
00:01:11]} Kf6 {[%clk 00:27:23]} {[%emt 00:00:07]} 45. dxe5+ {[%clk 00:41:33]}
{[%emt 00:00:10]} Kg7 {[%clk 00:27:37]} {[%emt 00:00:15]} 46. Kg2 {[%emt
00:00:12]} c3 {[%emt 00:00:13]} 47. Kh3 {[%clk 00:41:53]} {[%emt 00:00:17]} c2+
{[%clk 00:28:32]} {[%emt 00:00:05]} 48. Kg4 {[%clk 00:41:59]} {[%emt 00:00:24]}
c1=Q {[%emt 00:01:07]} 49. f4 {[%clk 00:40:55]} {[%emt 00:00:33]} Qg1+ {[%clk
00:29:18]} {[%emt 00:00:07]} 50. Kh4 {[%clk 00:40:52]} {[%emt 00:00:30]} Qg3#
{[%clk 00:29:43]} {[%emt 00:00:07]} 0-1

[Event "Nové Hrady - Open"]
[Site "Nové Hrady, Czech Republic"]
[Date "2024.08.15"]
[Round "5.10"]
[White "Borecký, Andrej"]
[Black "Mácová, Markéta"]
[Result "1-0"]
[TimeControl "2x90min+30s"]
[WhiteFideId "23752670"]
[BlackFideId "23715588"]
[WhiteElo "1672"]
[BlackElo "1567"]

1. e4 {[%clk 01:30:55]} {[%emt 00:00:04]} e5 {[%clk 01:30:53]} {[%emt
00:00:07]} 2. Nf3 {[%clk 01:31:19]} {[%emt 00:00:07]} Nc6 {[%clk 01:31:17]}
{[%emt 00:00:07]} 3. Bc4 {[%clk 01:31:28]} {[%emt 00:00:20]} Nf6 {[%clk
01:31:38]} {[%emt 00:00:09]} 4. d3 {[%clk 01:31:38]} {[%emt 00:00:21]} Bc5
{[%clk 01:31:46]} {[%emt 00:00:21]} 5. c3 {[%clk 01:31:02]} {[%emt 00:01:06]}
d6 {[%clk 01:31:42]} {[%emt 00:00:34]} 6. O-O {[%clk 01:31:02]} {[%emt
00:00:30]} Bg4 {[%clk 01:31:53]} {[%emt 00:00:19]} 7. a4 {[%clk 01:30:24]}
{[%emt 00:01:08]} a5 {[%clk 01:30:52]} {[%emt 00:01:31]} 8. Be3 {[%clk
01:29:26]} {[%emt 00:01:28]} Bxe3 {[%clk 01:28:37]} {[%emt 00:02:44]} 9. fxe3
{[%clk 01:29:47]} {[%emt 00:00:10]} Qd7 {[%clk 01:28:00]} {[%emt 00:01:06]} 10.
Nbd2 {[%clk 01:28:06]} {[%emt 00:02:12]} O-O {[%clk 01:26:34]} {[%emt
00:01:56]} 11. Qe1 {[%clk 01:22:44]} {[%emt 00:05:53]} Ne7 {[%clk 01:24:20]}
{[%emt 00:02:42]} 12. h3 {[%clk 01:20:21]} {[%emt 00:02:53]} Bh5 {[%clk
01:22:26]} {[%emt 00:02:25]} 13. Ba2 {[%clk 01:11:17]} {[%emt 00:09:34]} Qc6
{[%clk 01:11:02]} {[%emt 00:11:54]} 14. d4 {[%clk 01:05:00]} {[%emt 00:06:48]}
exd4 {[%clk 01:06:59]} {[%emt 00:04:32]} 15. exd4 {[%clk 01:02:20]} {[%emt
00:03:10]} Rfe8 {[%clk 01:05:34]} {[%emt 00:01:55]} 16. Qf2 {[%clk 00:53:41]}
{[%emt 00:09:09]} Nxe4 {[%clk 01:00:34]} {[%emt 00:05:29]} 17. Nxe4 {[%clk
00:53:32]} {[%emt 00:00:40]} Qxe4 {[%clk 01:00:42]} {[%emt 00:00:22]} 18. Ng5
{[%clk 00:53:26]} {[%emt 00:00:37]} Qc6 {[%clk 00:51:43]} {[%emt 00:09:28]} 19.
Bxf7+ {[%clk 00:52:06]} {[%emt 00:01:49]} Bxf7 {[%clk 00:50:20]} {[%emt
00:01:53]} 20. Qxf7+ {[%clk 00:52:23]} {[%emt 00:00:14]} Kh8 {[%clk 00:50:41]}
{[%emt 00:00:09]} 21. Ne6 {[%clk 00:52:14]} {[%emt 00:00:39]} Rg8 {[%clk
00:49:28]} {[%emt 00:01:42]} 22. Qxe7 {[%clk 00:50:07]} {[%emt 00:02:38]} Rae8
{[%clk 00:49:02]} {[%emt 00:00:55]} 23. Qf7 {[%clk 00:49:54]} {[%emt 00:00:41]}
d5 {[%clk 00:48:14]} {[%emt 00:01:21]} 24. Nxc7 {[%clk 00:43:56]} {[%emt
00:06:28]} Re2 {[%clk 00:47:35]} {[%emt 00:01:08]} 25. Rae1 {[%clk 00:42:34]}
{[%emt 00:01:53]} Rxe1 {[%clk 00:45:26]} {[%emt 00:02:38]} 26. Rxe1 {[%clk
00:42:57]} {[%emt 00:00:08]} Qxa4 {[%clk 00:44:34]} {[%emt 00:01:22]} 27. Rf1
{[%clk 00:41:12]} {[%emt 00:02:15]} h6 {[%clk 00:44:30]} {[%emt 00:00:34]} 28.
Qg6 {[%clk 00:40:41]} {[%emt 00:01:00]} Qa2 {[%clk 00:43:39]} {[%emt 00:01:21]}
29. Ne8 {[%clk 00:39:35]} {[%emt 00:01:37]} Qxb2 {[%clk 00:42:11]} {[%emt
00:01:57]} 30. Nf6 {[%clk 00:39:40]} {[%emt 00:00:25]} 1-0